fUST/lending_fUST_20250816
["ID","MTS","AMOUNT","RATE_DAILY","PERIOD"]
[379501175,1755316251501,-608.82,0.00022465,3]
[379501176,1755316251510,-571.54091121,0.00022473,2]
[379501177,1755316251520,-501.51266676,0.00022473,2]
[379501178,1755316251531,-500.0,0.00022473,2]
[379501179,1755316251541,-1000.0,0.00022521,2]
[379501180,1755316251553,-160.0,0.00022638,2]
[379501181,1755316251563,-771.09067312,0.0002264,2]
[379501182,1755316251572,-420.0,0.00022644,2]
[379501183,1755316251582,-151.0,0.00022682,2]
[379501184,1755316251594,-151.0,0.00022682,2]
[379501185,1755316251605,-151.0,0.00022682,2]
[379501186,1755316251614,-151.0,0.00022682,2]
[379501187,1755316251624,-151.0,0.00022682,2]
[379501188,1755316251783,-151.0,0.00022682,2]
[379501189,1755316251794,-151.0,0.00022682,2]
[379501190,1755316251804,-151.0,0.00022682,2]
[379501191,1755316251814,-151.0,0.00022682,2]
[379501192,1755316251824,-239.14688081,0.00022682,2]
[379501193,1755316251834,-151.0,0.00022682,2]
[379501194,1755316251844,-1000.0,0.00022721,2]
[379501195,1755316251853,-1000.0,0.00022721,2]
[379501196,1755316251863,-1000.0,0.00022721,2]
[379501197,1755316251874,-564.65206106,0.00022721,2]
[379501198,1755316251884,-1000.0,0.00022721,2]
[379501199,1755316251893,-1000.0,0.00022721,2]
[379501200,1755316251903,-507.82063558,0.00022721,2]
[379501201,1755316251912,-501.3444134,0.00022721,2]
[379501202,1755316251922,-480.0,0.00022738,3]
[379501203,1755316251933,-480.0,0.00022738,3]
[379501204,1755316251943,-741.54,0.00022738,3]
[379501205,1755316251952,-1989.85,0.00022738,3]
[379501206,1755316251961,-480.0,0.00022738,3]
[379501207,1755316251971,-480.0,0.00022738,3]
[379501208,1755316251980,-480.0,0.00022738,3]
[379501209,1755316251990,-480.0,0.00022739,3]
[379501210,1755316251999,-480.0,0.00022739,3]
[379501211,1755316252009,-274.52032317,0.00022739,3]
[379501212,1755316252018,-480.0,0.00022739,3]
[379501213,1755316252028,-400.0,0.00022739,3]
[379501214,1755316252038,-480.0,0.00022739,3]
[379501215,1755316252048,-403.18,0.00022739,3]
[379501216,1755316252057,-400.0,0.00022739,3]
[379501217,1755316252067,-480.0,0.00022739,3]
[379501218,1755316252076,-480.0,0.00022739,3]
[379501219,1755316252086,-607.6,0.00022739,3]
[379501220,1755316252096,-480.0,0.00022739,3]
[379501221,1755316252106,-480.0,0.00022739,3]
[379501222,1755316252117,-400.0,0.00022739,3]
[379501223,1755316252127,-400.0,0.00022739,3]
[379501224,1755316252136,-480.0,0.00022739,3]
[379501225,1755316252146,-480.0,0.00022739,3]
[379501226,1755316252156,-480.0,0.00022739,3]
[379501227,1755316252165,-480.0,0.00022739,3]
[379501228,1755316252174,-480.0,0.00022739,3]
[379501229,1755316252183,-480.0,0.00022739,3]
[379501230,1755316252192,-456.64606735,0.00022739,3]
[379501231,1755316252202,-400.0,0.00022739,3]
[379501232,1755316252211,-400.0,0.00022739,3]
[379501233,1755316252220,-400.96572236,0.00022739,3]
[379501234,1755316252229,-400.0,0.00022739,3]
[379501235,1755316252238,-480.0,0.00022739,3]
[379501236,1755316252248,-480.0,0.00022739,3]
[379501237,1755316252257,-1035.24,0.00022739,3]
[379501238,1755316252266,-480.0,0.00022739,3]
[379501239,1755316252276,-400.86437712,0.00022739,3]
[379501240,1755316252286,-729.69,0.00022739,3]
[379501241,1755316252295,-400.68800541,0.00022739,3]
[379501242,1755316252305,-670.16,0.00022739,3]
[379501243,1755316252315,-480.0,0.00022739,3]
[379501244,1755316252324,-480.0,0.00022739,3]
[379501245,1755316252334,-480.0,0.00022739,3]
[379501246,1755316252344,-575.31,0.00022739,3]
[379501247,1755316252354,-480.0,0.00022739,3]
[379501248,1755316252364,-574.18063631,0.00022739,3]
[379501249,1755316252373,-480.0,0.00022739,3]
[379501250,1755316252383,-480.0,0.00022739,3]
[379501251,1755316252392,-480.0,0.00022739,3]
[379501252,1755316252401,-480.0,0.00022739,3]
[379501253,1755316252411,-480.0,0.00022739,3]
[379501254,1755316252421,-480.0,0.00022739,3]
[379501255,1755316252431,-480.0,0.00022739,3]
[379501256,1755316252440,-244.05127684,0.00022739,3]
[379501257,1755316252449,-597.55,0.00022739,3]
[379501258,1755316252459,-480.0,0.00022739,3]
[379501259,1755316252468,-480.0,0.00022739,3]
[379501260,1755316252478,-480.0,0.00022739,3]
[379501261,1755316252486,-508.79,0.00022739,3]
[379501262,1755316252496,-480.0,0.00022739,3]
[379501263,1755316252506,-480.0,0.00022739,3]
[379501264,1755316252515,-480.0,0.00022739,3]
[379501265,1755316252525,-480.0,0.00022739,3]
[379501266,1755316252534,-480.0,0.00022739,3]
[379501267,1755316252545,-480.0,0.00022739,3]
[379501268,1755316252557,-1051.25,0.00022739,3]
[379501269,1755316252566,-480.0,0.00022739,3]
[379501270,1755316252575,-480.0,0.00022739,3]
[379501271,1755316252585,-480.0,0.00022739,3]
[379501272,1755316252594,-480.0,0.00022739,3]
[379501273,1755316252604,-3165.52,0.00022739,3]
[379501274,1755316252613,-480.0,0.00022739,3]
[379501275,1755316252623,-480.0,0.00022739,3]
[379501276,1755316252632,-403.32898578,0.00022739,3]
[379501277,1755316252641,-480.0,0.00022739,3]
[379501278,1755316252651,-616.62,0.00022739,3]
[379501279,1755316252660,-480.0,0.00022739,3]
[379501280,1755316252670,-480.0,0.00022739,3]
[379501281,1755316252679,-480.0,0.00022739,3]
[379501282,1755316252689,-480.0,0.00022739,3]
[379501283,1755316252698,-480.0,0.00022739,3]
[379501284,1755316252709,-576.63,0.00022739,3]
[379501285,1755316252720,-480.0,0.00022739,3]
[379501286,1755316252729,-480.0,0.00022739,3]
[379501287,1755316252738,-480.0,0.00022739,3]
[379501288,1755316252747,-480.0,0.00022739,3]
[379501289,1755316252758,-1171.68,0.00022739,3]
[379501290,1755316252767,-480.0,0.00022739,3]
[379501291,1755316252776,-480.0,0.00022739,3]
[379501292,1755316252785,-480.0,0.00022739,3]
[379501293,1755316252795,-480.0,0.00022739,3]
[379501294,1755316252806,-480.0,0.00022739,3]
[379501295,1755316252815,-160.36905888,0.00022739,3]
[379501296,1755316252825,-480.0,0.00022739,3]
[379501297,1755316252836,-480.0,0.00022739,3]
[379501298,1755316252845,-384.28527995,0.00022739,3]
[379501299,1755316252855,-259.32892455,0.00022739,3]
[379501300,1755316252865,-563.28,0.00022739,3]
[379501301,1755316252874,-480.0,0.00022739,3]
[379501302,1755316252885,-480.0,0.00022739,3]
[379501303,1755316252894,-480.0,0.00022739,3]
[379501304,1755316252903,-480.0,0.00022739,3]
[379501305,1755316252913,-480.0,0.00022739,3]
[379501306,1755316252922,-480.0,0.00022739,3]
[379501307,1755316252931,-480.0,0.00022739,3]
[379501308,1755316252941,-480.0,0.00022739,3]
[379501309,1755316252950,-480.0,0.00022739,3]
[379501310,1755316252961,-480.0,0.00022739,3]
[379501311,1755316252971,-480.0,0.00022739,3]
[379501312,1755316252981,-480.0,0.00022739,3]
[379501313,1755316252991,-480.0,0.00022739,3]
[379501314,1755316253000,-765.05,0.00022739,3]
[379501315,1755316253009,-480.0,0.00022739,3]
[379501316,1755316253019,-2905.4,0.00022739,3]
[379501317,1755316253028,-480.0,0.00022739,3]
[379501318,1755316253038,-480.0,0.00022739,3]
[379501319,1755316253047,-480.0,0.00022739,3]
[379501320,1755316253057,-337.29900248,0.00022739,3]
[379501321,1755316253066,-480.0,0.00022739,3]
[379501322,1755316253075,-480.0,0.00022739,3]
[379501323,1755316253085,-480.0,0.00022739,3]
[379501324,1755316253095,-480.0,0.00022739,3]
[379501325,1755316253104,-480.0,0.00022739,3]
[379501326,1755316253114,-480.0,0.00022739,3]
[379501327,1755316253123,-480.0,0.00022739,3]
[379501328,1755316253133,-1153.82,0.00022739,3]
[379501329,1755316253142,-510.73,0.00022739,3]
[379501330,1755316253151,-480.0,0.00022739,3]
[379501331,1755316253160,-480.0,0.00022739,3]
[379501332,1755316253170,-480.0,0.00022739,3]
[379501333,1755316253179,-480.0,0.00022739,3]
[379501334,1755316253188,-1091.34,0.00022739,3]
[379501335,1755316253197,-210.98934328,0.00022739,3]
[379501336,1755316253206,-480.0,0.00022739,3]
[379501337,1755316253215,-480.0,0.00022739,3]
[379501338,1755316253225,-480.0,0.00022739,3]
[379501339,1755316253235,-480.0,0.00022739,3]
[379501340,1755316253244,-480.0,0.00022739,3]
[379501341,1755316253253,-480.0,0.00022739,3]
[379501342,1755316253262,-480.0,0.00022739,3]
[379501343,1755316253272,-480.0,0.00022739,3]
[379501344,1755316253281,-480.0,0.00022739,3]
[379501345,1755316253291,-480.0,0.00022739,3]
[379501346,1755316253301,-4504.83,0.00022739,3]
[379501347,1755316253311,-480.0,0.00022739,3]
[379501348,1755316253322,-480.0,0.00022739,3]
[379501349,1755316253332,-480.0,0.00022739,3]
[379501350,1755316253342,-2076.77,0.00022739,3]
[379501351,1755316253353,-480.0,0.00022739,3]
[379501352,1755316253362,-480.0,0.00022739,3]
[379501353,1755316253374,-480.0,0.00022739,3]
[379501354,1755316253383,-799.79,0.00022739,3]
[379501355,1755316253393,-480.0,0.00022739,3]
[379501356,1755316253403,-285.63008227,0.00022739,3]
[379501357,1755316253413,-480.0,0.00022739,3]
[379501358,1755316253422,-480.0,0.00022739,3]
[379501359,1755316253433,-480.0,0.00022739,3]
[379501360,1755316253443,-480.0,0.00022739,3]
[379501361,1755316253453,-480.0,0.00022739,3]
[379501362,1755316253463,-480.0,0.00022739,3]
[379501363,1755316253474,-11652.22,0.00022739,3]
[379501364,1755316253484,-480.0,0.00022739,3]
[379501365,1755316253494,-480.0,0.00022739,3]
[379501366,1755316253503,-520.18,0.00022739,3]
[379501367,1755316253513,-480.0,0.00022739,3]
[379501368,1755316253523,-226.47093368,0.00022739,3]
[379501369,1755316253533,-1153.79,0.00022739,3]
[379501370,1755316253543,-309.19331249,0.00022739,3]
[379501371,1755316253553,-480.0,0.00022739,3]
[379501372,1755316253563,-480.0,0.00022739,3]
[379501373,1755316253573,-528.38,0.00022739,3]
[379501374,1755316253583,-480.0,0.00022739,3]
[379501375,1755316253593,-400.0,0.00022739,3]
[379501376,1755316253603,-480.0,0.00022739,3]
[379501377,1755316253613,-480.0,0.00022739,3]
[379501378,1755316253625,-586.71,0.00022739,3]
[379501379,1755316253636,-480.0,0.00022739,3]
[379501380,1755316253646,-480.0,0.00022739,3]
[379501381,1755316253656,-480.0,0.00022739,3]
[379501382,1755316253667,-480.0,0.00022739,3]
[379501383,1755316253677,-480.0,0.00022739,3]
[379501384,1755316253687,-480.0,0.00022739,3]
[379501385,1755316253697,-480.0,0.00022739,3]
[379501386,1755316253711,-480.0,0.00022739,3]
[379501387,1755316253727,-522.12,0.00022739,3]
[379501388,1755316253738,-480.0,0.00022739,3]
[379501389,1755316253748,-480.0,0.00022739,3]
[379501390,1755316253758,-682.85,0.00022739,3]
[379501391,1755316253768,-995.32,0.00022739,3]
[379501392,1755316253778,-480.0,0.00022739,3]
[379501393,1755316253788,-403.18964026,0.00022739,3]
[379501394,1755316253798,-480.0,0.00022739,3]
[379501395,1755316253809,-480.0,0.00022739,3]
[379501396,1755316253818,-526.54,0.00022739,3]
[379501397,1755316253828,-901.48,0.00022739,3]
[379501398,1755316253838,-480.0,0.00022739,3]
[379501399,1755316253849,-4398.92,0.00022739,3]
[379501400,1755316253859,-1356.37,0.00022739,3]
[379501401,1755316253870,-480.0,0.00022739,3]
[379501402,1755316253880,-480.0,0.00022739,3]
[379501403,1755316253890,-480.0,0.00022739,3]
[379501404,1755316253899,-910.09,0.00022739,3]
[379501405,1755316253909,-480.0,0.00022739,3]
[379501406,1755316253919,-400.0,0.00022739,3]
[379501407,1755316253928,-480.0,0.00022739,3]
[379501408,1755316253938,-480.0,0.00022739,3]
[379501409,1755316253948,-343.0181486,0.00022739,3]
[379501410,1755316253957,-480.0,0.00022739,3]
[379501411,1755316253967,-480.0,0.00022739,3]
[379501412,1755316253977,-480.0,0.00022739,3]
[379501413,1755316253986,-480.0,0.00022739,3]
[379501414,1755316253996,-480.0,0.00022739,3]
[379501415,1755316254006,-400.0,0.00022739,3]
[379501416,1755316254016,-480.0,0.00022739,3]
[379501417,1755316254026,-480.0,0.00022739,3]
[379501418,1755316254038,-400.0,0.00022739,3]
[379501419,1755316254050,-480.0,0.00022739,3]
[379501420,1755316254061,-608.82,0.00022739,3]
[379501421,1755316254071,-500.0,0.00022773,2]
[379501422,1755316254081,-150.0,0.00022773,2]
[379501423,1755316254092,-1000.0,0.000228,10]
[379501424,1755316254102,-200.0,0.0002285,20]
[379501425,1755316254112,-200.0,0.0002285,20]
[379501426,1755316254124,-200.0,0.0002285,20]
[379501427,1755316254134,-200.0,0.0002285,20]
[379501428,1755316254144,-200.0,0.0002285,20]
[379501429,1755316254154,-200.0,0.0002285,20]
[379501430,1755316254166,-200.0,0.0002285,20]
[379501431,1755316254176,-200.0,0.0002285,20]
[379501432,1755316254186,-200.0,0.0002285,20]
[379501433,1755316254197,-200.0,0.0002285,20]
[379501434,1755316254206,-240.0,0.0002285,20]
[379501435,1755316254216,-1132.92304895,0.00022948,2]
[379501436,1755316254227,-232.11368524,0.00023,3]
[379501437,1755316254237,-160.0,0.00023,3]
[379501438,1755316254248,-64306.75,0.00023,2]
[379501439,1755316254257,-160.0,0.00023,3]
[379501440,1755316254267,-843.58077381,0.00023,3]
[379501441,1755316254276,-151.0,0.00023,7]
[379501442,1755316254286,-216.80276362,0.00023,3]
[379501443,1755316254295,-151.0,0.00023,7]
[379501444,1755316254305,-153.113368,0.00023,7]
[379501445,1755316254315,-480.0,0.00023012,3]
[379501446,1755316254324,-305.35629125,0.00023012,3]
[379501447,1755316254334,-741.54,0.00023012,3]
[379501448,1755316254345,-1989.85,0.00023012,3]
[379501449,1755316254354,-480.0,0.00023012,3]
[379501450,1755316254364,-500.0,0.00023012,2]
[379501451,1755316254375,-480.0,0.00023012,3]
[379501452,1755316254384,-480.0,0.00023012,3]
[379501453,1755316254394,-1671.57930987,0.00023013,2]
[379501454,1755316254403,-480.0,0.00023013,3]
[379501455,1755316254413,-480.0,0.00023013,3]
[379501456,1755316254423,-480.0,0.00023013,3]
[379501457,1755316254431,-480.0,0.00023013,3]
[379501458,1755316254441,-480.0,0.00023013,3]
[379501459,1755316254452,-469.64352156,0.00023013,3]
[379501460,1755316254463,-480.0,0.00023013,3]
[379501461,1755316254473,-480.0,0.00023013,3]
[379501462,1755316254484,-480.0,0.00023013,3]
[379501463,1755316254494,-297.90426437,0.00023013,3]
[379501464,1755316254505,-480.0,0.00023013,3]
[379501465,1755316254515,-480.0,0.00023013,3]
[379501466,1755316254525,-480.0,0.00023013,3]
[379501467,1755316254535,-480.0,0.00023013,3]
[379501468,1755316254544,-480.0,0.00023013,3]
[379501469,1755316254554,-480.0,0.00023013,3]
[379501470,1755316254563,-1035.24,0.00023013,3]
[379501471,1755316254572,-480.0,0.00023013,3]
[379501472,1755316254583,-729.69,0.00023013,3]
[379501473,1755316254592,-670.16,0.00023013,3]
[379501474,1755316254602,-480.0,0.00023013,3]
[379501475,1755316254612,-480.0,0.00023013,3]
[379501476,1755316254622,-480.0,0.00023013,3]
[379501477,1755316254632,-575.31,0.00023013,3]
[379501478,1755316254641,-480.0,0.00023013,3]
[379501479,1755316254650,-480.0,0.00023013,3]
[379501480,1755316254660,-480.0,0.00023013,3]
[379501481,1755316254669,-480.0,0.00023013,3]
[379501482,1755316254678,-480.0,0.00023013,3]
[379501483,1755316254688,-480.0,0.00023013,3]
[379501484,1755316254697,-480.0,0.00023013,3]
[379501485,1755316254707,-480.0,0.00023013,3]
[379501486,1755316254720,-228.142795,0.00023013,7]
[379501487,1755316254730,-597.55,0.00023013,3]
[379501488,1755316254739,-480.0,0.00023013,3]
[379501489,1755316254749,-480.0,0.00023013,3]
[379501490,1755316254759,-421.0,0.00023013,3]
[379501491,1755316254768,-508.79,0.00023013,3]
[379501492,1755316254779,-366.34210453,0.00023013,3]
[379501493,1755316254788,-151.0,0.00023013,7]
[379501494,1755316254797,-225.84226689,0.00023013,3]
[379501495,1755316254807,-480.0,0.00023013,3]
[379501496,1755316254816,-480.0,0.00023013,3]
[379501497,1755316254826,-480.0,0.00023013,3]
[379501498,1755316254835,-480.0,0.00023013,3]
[379501499,1755316254845,-1051.25,0.00023013,3]
[379501500,1755316254855,-480.0,0.00023013,3]
[379501501,1755316254866,-480.0,0.00023013,3]
[379501502,1755316254875,-480.0,0.00023013,3]
[379501503,1755316254885,-480.0,0.00023013,3]
[379501504,1755316254897,-151.0,0.00023013,7]
[379501505,1755316254908,-3165.52,0.00023013,3]
[379501506,1755316254917,-480.0,0.00023013,3]
[379501507,1755316254926,-480.0,0.00023013,3]
[379501508,1755316254938,-288.91537264,0.00023013,3]
[379501509,1755316254947,-616.62,0.00023013,3]
[379501510,1755316254958,-480.0,0.00023013,3]
[379501511,1755316254967,-480.0,0.00023013,3]
[379501512,1755316254977,-480.0,0.00023013,3]
[379501513,1755316254987,-480.0,0.00023013,3]
[379501514,1755316254997,-480.0,0.00023013,3]
[379501515,1755316255007,-576.63,0.00023013,3]
[379501516,1755316255016,-480.0,0.00023013,3]
[379501517,1755316255026,-480.0,0.00023013,3]
[379501518,1755316255036,-151.0,0.00023013,7]
[379501519,1755316255045,-480.0,0.00023013,3]
[379501520,1755316255054,-480.0,0.00023013,3]
[379501521,1755316255064,-1171.68,0.00023013,3]
[379501522,1755316255073,-480.0,0.00023013,3]
[379501523,1755316255083,-480.0,0.00023013,3]
[379501524,1755316255092,-268.08,0.00023013,3]
[379501525,1755316255101,-480.0,0.00023013,3]
[379501526,1755316255244,-151.0,0.00023013,7]
[379501527,1755316255255,-480.0,0.00023013,3]
[379501528,1755316255265,-480.0,0.00023013,3]
[379501529,1755316255275,-151.0,0.00023013,7]
[379501530,1755316255285,-480.0,0.00023013,3]
[379501531,1755316255295,-563.28,0.00023013,3]
[379501532,1755316255304,-480.0,0.00023013,3]
[379501533,1755316255314,-480.0,0.00023013,3]
[379501534,1755316255323,-480.0,0.00023013,3]
[379501535,1755316255334,-480.0,0.00023013,3]
[379501536,1755316255344,-384.1449626,0.00023013,3]
[379501537,1755316255355,-480.0,0.00023013,3]
[379501538,1755316255367,-480.0,0.00023013,3]
[379501539,1755316255376,-480.0,0.00023013,3]
[379501540,1755316255386,-480.0,0.00023013,3]
[379501541,1755316255397,-244.28,0.00023013,3]
[379501542,1755316255408,-480.0,0.00023013,3]
[379501543,1755316255417,-480.0,0.00023013,3]
[379501544,1755316255428,-480.0,0.00023013,3]
[379501545,1755316255438,-765.05,0.00023013,3]
[379501546,1755316255448,-480.0,0.00023013,3]
[379501547,1755316255458,-2905.4,0.00023013,3]
[379501548,1755316255469,-480.0,0.00023013,3]
[379501549,1755316255481,-480.0,0.00023013,3]
[379501550,1755316255490,-480.0,0.00023013,3]
[379501551,1755316255499,-480.0,0.00023013,3]
[379501552,1755316255509,-480.0,0.00023013,3]
[379501553,1755316255520,-480.0,0.00023013,3]
[379501554,1755316255531,-480.0,0.00023013,3]
[379501555,1755316255540,-480.0,0.00023013,3]
[379501556,1755316255550,-480.0,0.00023013,3]
[379501557,1755316255560,-480.0,0.00023013,3]
[379501558,1755316255570,-1153.82,0.00023013,3]
[379501559,1755316255580,-510.73,0.00023013,3]
[379501560,1755316255590,-480.0,0.00023013,3]
[379501561,1755316255600,-480.0,0.00023013,3]
[379501562,1755316255609,-480.0,0.00023013,3]
[379501563,1755316255619,-480.0,0.00023013,3]
[379501564,1755316255629,-1091.34,0.00023013,3]
[379501565,1755316255640,-480.0,0.00023013,3]
[379501566,1755316255650,-480.0,0.00023013,3]
[379501567,1755316255659,-480.0,0.00023013,3]
[379501568,1755316255669,-480.0,0.00023013,3]
[379501569,1755316255678,-480.0,0.00023013,3]
[379501570,1755316255688,-480.0,0.00023013,3]
[379501571,1755316255697,-480.0,0.00023013,3]
[379501572,1755316255707,-480.0,0.00023013,3]
[379501573,1755316255720,-167.15045146,0.00023013,3]
[379501574,1755316255729,-480.0,0.00023013,3]
[379501575,1755316255739,-4504.83,0.00023013,3]
[379501576,1755316255748,-480.0,0.00023013,3]
[379501577,1755316255758,-480.0,0.00023013,3]
[379501578,1755316255768,-480.0,0.00023013,3]
[379501579,1755316255777,-2076.77,0.00023013,3]
[379501580,1755316255787,-480.0,0.00023013,3]
[379501581,1755316255797,-480.0,0.00023013,3]
[379501582,1755316255807,-480.0,0.00023013,3]
[379501583,1755316255817,-799.79,0.00023013,3]
[379501584,1755316255827,-480.0,0.00023013,3]
[379501585,1755316255837,-480.0,0.00023013,3]
[379501586,1755316255846,-480.0,0.00023013,3]
[379501587,1755316255856,-480.0,0.00023013,3]
[379501588,1755316255865,-480.0,0.00023013,3]
[379501589,1755316255876,-480.0,0.00023013,3]
[379501590,1755316255885,-480.0,0.00023013,3]
[379501591,1755316255895,-549.06389043,0.00023013,3]
[379501592,1755316256275,-596.08281684,0.00021917,3]
[379501593,1755316256285,-460.0,0.00021917,3]
[379501594,1755316256294,-460.0,0.00021917,3]
[379501595,1755316256304,-6566.07,0.00022191,3]
[379501596,1755316256313,-6566.07,0.00022465,3]
[379501597,1755316256323,-6566.07,0.00022739,3]
[379501598,1755316256333,-11103.15610957,0.00023013,3]
[379501599,1755316256342,-480.0,0.00023013,3]
[379501600,1755316256352,-480.0,0.00023013,3]
[379501601,1755316256361,-520.18,0.00023013,3]
[379501602,1755316256371,-480.0,0.00023013,3]
[379501603,1755316256380,-1153.79,0.00023013,3]
[379501604,1755316256390,-480.0,0.00023013,3]
[379501605,1755316256399,-480.0,0.00023013,3]
[379501606,1755316256408,-528.38,0.00023013,3]
[379501607,1755316256417,-480.0,0.00023013,3]
[379501608,1755316256427,-538.37956644,0.00023013,3]
[379501609,1755316256436,-480.0,0.00023013,3]
[379501610,1755316256445,-586.71,0.00023013,3]
[379501611,1755316256454,-480.0,0.00023013,3]
[379501612,1755316256465,-480.0,0.00023013,3]
[379501613,1755316256474,-186.17945701,0.00023013,3]
[379501614,1755316256484,-480.0,0.00023013,3]
[379501615,1755316256493,-480.0,0.00023013,3]
[379501616,1755316256502,-480.0,0.00023013,3]
[379501617,1755316256511,-480.0,0.00023013,3]
[379501618,1755316256521,-162.92409165,0.00023013,3]
[379501619,1755316256530,-480.0,0.00023013,3]
[379501620,1755316256539,-480.0,0.00023013,3]
[379501621,1755316256549,-682.85,0.00023013,3]
[379501622,1755316256558,-995.32,0.00023013,3]
[379501623,1755316256567,-480.0,0.00023013,3]
[379501624,1755316256576,-380.0,0.00023013,3]
[379501625,1755316256589,-339.88572831,0.00023013,3]
[379501626,1755316256602,-526.54,0.00023013,3]
[379501627,1755316256614,-901.48,0.00023013,3]
[379501628,1755316256628,-480.0,0.00023013,3]
[379501629,1755316256640,-4398.92,0.00023013,3]
[379501630,1755316256653,-1356.37,0.00023013,3]
[379501631,1755316256664,-480.0,0.00023013,3]
[379501632,1755316256677,-480.0,0.00023013,3]
[379501633,1755316256690,-480.0,0.00023013,3]
[379501634,1755316256703,-910.09,0.00023013,3]
[379501635,1755316256720,-480.0,0.00023013,3]
[379501636,1755316256734,-380.0,0.00023013,3]
[379501637,1755316256747,-480.0,0.00023013,3]
[379501638,1755316256759,-480.0,0.00023013,3]
[379501639,1755316256771,-480.0,0.00023013,3]
[379501640,1755316256784,-480.0,0.00023013,3]
[379501641,1755316256796,-480.0,0.00023013,3]
[379501642,1755316256809,-480.0,0.00023013,3]
[379501643,1755316256823,-480.0,0.00023013,3]
[379501644,1755316256835,-480.0,0.00023013,3]
[379501645,1755316256846,-380.0,0.00023013,3]
[379501646,1755316256856,-608.82,0.00023013,3]
[379501647,1755316256869,-160.0,0.0002302,2]
[379501648,1755316256881,-1000.0,0.00023021,2]
[379501649,1755316256893,-2739.41554593,0.00023059,2]
[379501650,1755316256906,-1500.0,0.00023068,2]
[379501651,1755316256918,-150.0,0.00023073,2]
[379501652,1755316256932,-9953.27,0.000231,7]
[379501653,1755316256946,-2599.76,0.000231,7]
[379501654,1755316256959,-151.0,0.000231,8]
[379501655,1755316256972,-417.15472785,0.000231,7]
[379501656,1755316256982,-260.0,0.00023186,2]
[379501657,1755316256993,-151.0,0.000232,7]
[379501658,1755316257003,-156.02594904,0.00023268,2]
[379501659,1755316257015,-1500.0,0.00023268,2]
[379501660,1755316257029,-761.22389177,0.00023268,2]
[379501661,1755316257042,-1500.0,0.00023268,2]
[379501662,1755316257053,-1500.0,0.00023268,2]
[379501663,1755316257070,-670.76004826,0.00023271,2]
[379501664,1755316257081,-480.0,0.00023286,3]
[379501665,1755316257093,-741.54,0.00023286,3]
[379501666,1755316257104,-1989.85,0.00023286,3]
[379501667,1755316257116,-363.39387725,0.00023286,3]
[379501668,1755316257127,-480.0,0.00023286,3]
[379501669,1755316257139,-480.0,0.00023286,3]
[379501670,1755316257151,-480.0,0.00023287,3]
[379501671,1755316257164,-480.0,0.00023287,3]
[379501672,1755316257176,-151.0,0.00023287,7]
[379501673,1755316257191,-480.0,0.00023287,3]
[379501674,1755316257202,-360.0,0.00023287,3]